fUST/lending_fUST_20250708
["ID","MTS","AMOUNT","RATE_DAILY","PERIOD"]
[370338620,1751967039585,-503.46,0.00019178,2]
[370338621,1751967039594,-1354.42,0.00019178,2]
[370338622,1751967039603,-460.0,0.00019178,2]
[370338623,1751967039612,-460.0,0.00019178,2]
[370338624,1751967039621,-460.0,0.00019178,2]
[370338625,1751967039630,-460.0,0.00019178,2]
[370338627,1751967039640,-460.0,0.00019178,2]
[370338629,1751967039649,-460.0,0.00019178,2]
[370338631,1751967039658,-875.79,0.00019178,2]
[370338632,1751967039667,-1996.4,0.00019178,2]
[370338634,1751967039675,-460.0,0.00019178,2]
[370338636,1751967039686,-1738.9,0.00019178,2]
[370338638,1751967039695,-753.83,0.00019178,2]
[370338640,1751967039704,-460.0,0.00019178,2]
[370338642,1751967039713,-545.09594715,0.00019178,2]
[370338644,1751967039723,-486.31,0.00019178,2]
[370338646,1751967039732,-466.13833048,0.00019178,2]
[370338648,1751967039741,-460.0,0.00019178,2]
[370338650,1751967039751,-1027.22,0.00019178,2]
[370338652,1751967039760,-606.23,0.00019178,2]
[370338654,1751967039769,-460.0,0.00019178,2]
[370338656,1751967039778,-500.0,0.00019178,2]
[370338658,1751967039787,-500.0,0.00019178,2]
[370338660,1751967039796,-500.0,0.00019178,2]
[370338662,1751967039806,-500.0,0.00019178,2]
[370338664,1751967039815,-500.0,0.00019178,2]
[370338666,1751967039824,-559.36238194,0.00019178,2]
[370338668,1751967039833,-460.0,0.00019178,2]
[370338670,1751967039842,-460.0,0.00019178,2]
[370338672,1751967039852,-460.0,0.00019178,2]
[370338674,1751967039861,-460.0,0.00019178,2]
[370338676,1751967039870,-460.0,0.00019178,2]
[370338678,1751967039879,-460.0,0.00019178,2]
[370338680,1751967039888,-460.0,0.00019178,2]
[370338682,1751967039897,-479.29,0.00019178,2]
[370338684,1751967039906,-460.0,0.00019178,2]
[370338686,1751967039915,-827.43,0.00019178,2]
[370338688,1751967039925,-460.0,0.00019178,2]
[370338690,1751967039934,-460.0,0.00019178,2]
[370338692,1751967039943,-460.0,0.00019178,2]
[370338694,1751967039952,-460.0,0.00019178,2]
[370338696,1751967039961,-460.0,0.00019178,2]
[370338698,1751967039971,-460.0,0.00019178,2]
[370338700,1751967039980,-460.0,0.00019178,2]
[370338702,1751967039989,-460.0,0.00019178,2]
[370338704,1751967039998,-460.0,0.00019178,2]
[370338706,1751967040007,-886.02,0.00019178,2]
[370338708,1751967040016,-460.0,0.00019178,2]
[370338710,1751967040025,-970.31,0.00019178,2]
[370338712,1751967040034,-460.0,0.00019178,2]
[370338714,1751967040043,-460.0,0.00019178,2]
[370338716,1751967040052,-499.03,0.00019178,2]
[370338718,1751967040061,-460.0,0.00019178,2]
[370338720,1751967040070,-460.0,0.00019178,2]
[370338722,1751967040079,-460.0,0.00019178,2]
[370338724,1751967040090,-460.0,0.00019178,2]
[370338726,1751967040098,-460.0,0.00019178,2]
[370338728,1751967040107,-460.0,0.00019178,2]
[370338730,1751967040116,-460.0,0.00019178,2]
[370338732,1751967040125,-460.0,0.00019178,2]
[370338734,1751967040135,-1046.16,0.00019178,2]
[370338736,1751967040144,-460.0,0.00019178,2]
[370338738,1751967040154,-460.0,0.00019178,2]
[370338740,1751967040163,-460.0,0.00019178,2]
[370338742,1751967040175,-460.0,0.00019178,2]
[370338744,1751967040185,-460.0,0.00019178,2]
[370338746,1751967040194,-460.0,0.00019178,2]
[370338748,1751967040203,-460.0,0.00019178,2]
[370338750,1751967040212,-460.0,0.00019178,2]
[370338752,1751967040222,-460.0,0.00019178,2]
[370338754,1751967040231,-460.0,0.00019178,2]
[370338756,1751967040241,-460.0,0.00019178,2]
[370338758,1751967040253,-460.0,0.00019178,2]
[370338760,1751967040262,-270.89404926,0.00019178,2]
[370338762,1751967040271,-249.12,0.00019178,2]
[370338764,1751967040280,-207.4,0.00019178,2]
[370338766,1751967040288,-500.0,0.00019178,2]
[370338768,1751967040297,-500.0,0.00019178,2]
[370338770,1751967040307,-500.0,0.00019178,2]
[370338771,1751967040316,-500.0,0.00019178,2]
[370338773,1751967040326,-500.0,0.00019178,2]
[370338775,1751967040335,-500.0,0.00019178,2]
[370338777,1751967040344,-500.0,0.00019178,2]
[370338779,1751967040353,-500.0,0.00019178,2]
[370338781,1751967040362,-500.0,0.00019178,2]
[370338783,1751967040371,-500.0,0.00019178,2]
[370338785,1751967040380,-500.0,0.00019178,2]
[370338787,1751967040390,-150.12165877,0.00019276,2]
[370338789,1751967040399,-703.29,0.00019442,3]
[370338791,1751967040409,-351.64,0.00019442,3]
[370338793,1751967040418,-293.04,0.00019442,3]
[370338795,1751967040427,-879.13,0.00019442,3]
[370338797,1751967040437,-162.67127379,0.00019451,2]
[370338799,1751967040447,-462.47473298,0.00019452,2]
[370338801,1751967040456,-460.0,0.00019452,2]
[370338803,1751967040466,-460.0,0.00019452,2]
[370338805,1751967040476,-460.0,0.00019452,2]
[370338807,1751967040485,-460.0,0.00019452,2]
[370338809,1751967040495,-460.0,0.00019452,2]
[370338811,1751967040504,-460.0,0.00019452,2]
[370338813,1751967040513,-460.0,0.00019452,2]
[370338815,1751967040523,-460.0,0.00019452,2]
[370338817,1751967040532,-463.80301924,0.00019452,2]
[370338819,1751967040541,-460.0,0.00019452,2]
[370338821,1751967040550,-460.0,0.00019452,2]
[370338823,1751967040560,-460.0,0.00019452,2]
[370338825,1751967040569,-460.0,0.00019452,2]
[370338827,1751967040579,-460.0,0.00019452,2]
[370338829,1751967040588,-465.95250951,0.00019452,2]
[370338832,1751967040597,-460.0,0.00019452,2]
[370338833,1751967040607,-460.0,0.00019452,2]
[370338836,1751967040618,-476.02499081,0.00019452,2]
[370338838,1751967040627,-460.0,0.00019452,2]
[370338840,1751967040636,-460.0,0.00019452,2]
[370338842,1751967040646,-460.0,0.00019452,2]
[370338844,1751967040655,-460.0,0.00019452,2]
[370338846,1751967040664,-265.72,0.00019452,2]
[370338848,1751967040673,-460.0,0.00019452,2]
[370338850,1751967040683,-460.0,0.00019452,2]
[370338863,1751967040791,-460.0,0.00019452,2]
[370338866,1751967040815,-500.0,0.00019452,2]
[370338868,1751967040824,-460.0,0.00019452,2]
[370338870,1751967040834,-460.0,0.00019452,2]
[370338872,1751967040843,-460.0,0.00019452,2]
[370338874,1751967040852,-460.0,0.00019452,2]
[370338876,1751967040862,-460.0,0.00019452,2]
[370338878,1751967040871,-1090.38,0.00019452,2]
[370338880,1751967040879,-460.0,0.00019452,2]
[370338882,1751967040888,-460.0,0.00019452,2]
[370338884,1751967040895,-539.82,0.00019452,2]
[370338885,1751967040903,-1932.39,0.00019452,2]
[370338887,1751967040911,-460.0,0.00019452,2]
[370338890,1751967040921,-460.0,0.00019452,2]
[370338892,1751967040929,-460.0,0.00019452,2]
[370338894,1751967040937,-460.0,0.00019452,2]
[370338896,1751967040945,-506.34,0.00019452,2]
[370338898,1751967040953,-818.0,0.00019452,2]
[370338900,1751967040961,-1441.41,0.00019452,2]
[370338902,1751967040969,-460.0,0.00019452,2]
[370338903,1751967040975,-460.0,0.00019452,2]
[370338905,1751967040984,-1285.86,0.00019452,2]
[370338907,1751967040991,-460.0,0.00019452,2]
[370338909,1751967040999,-573.27,0.00019452,2]
[370338911,1751967041007,-460.0,0.00019452,2]
[370338913,1751967041015,-503.46,0.00019452,2]
[370338915,1751967041023,-1354.42,0.00019452,2]
[370338917,1751967041031,-460.0,0.00019452,2]
[370338919,1751967041038,-460.0,0.00019452,2]
[370338921,1751967041046,-460.0,0.00019452,2]
[370338924,1751967041055,-875.79,0.00019452,2]
[370338926,1751967041063,-1996.4,0.00019452,2]
[370338928,1751967041071,-460.0,0.00019452,2]
[370338930,1751967041080,-1738.9,0.00019452,2]
[370338932,1751967041087,-753.83,0.00019452,2]
[370338934,1751967041096,-460.0,0.00019452,2]
[370338936,1751967041104,-486.31,0.00019452,2]
[370338938,1751967041113,-1027.22,0.00019452,2]
[370338940,1751967041122,-606.23,0.00019452,2]
[370338941,1751967041131,-460.0,0.00019452,2]
[370338942,1751967041140,-453.67,0.00019452,2]
[370338943,1751967041149,-460.0,0.00019452,2]
[370338944,1751967041158,-460.0,0.00019452,2]
[370338945,1751967041167,-479.29,0.00019452,2]
[370338946,1751967041180,-460.0,0.00019452,2]
[370338947,1751967041190,-827.43,0.00019452,2]
[370338948,1751967041199,-460.0,0.00019452,2]
[370338949,1751967041209,-460.0,0.00019452,2]
[370338950,1751967041219,-460.0,0.00019452,2]
[370338951,1751967041231,-460.0,0.00019452,2]
[370338952,1751967041241,-886.02,0.00019452,2]
[370338953,1751967041253,-970.31,0.00019452,2]
[370338954,1751967041265,-499.03,0.00019452,2]
[370338955,1751967041275,-460.0,0.00019452,2]
[370338956,1751967041285,-460.0,0.00019452,2]
[370338957,1751967041294,-1046.16,0.00019452,2]
[370338958,1751967041303,-169.23907157,0.00019452,2]
[370338960,1751967041313,-460.0,0.00019452,2]
[370338961,1751967041322,-460.0,0.00019452,2]
[370338962,1751967041331,-460.0,0.00019452,2]
[370338964,1751967041340,-460.0,0.00019452,2]
[370338965,1751967041350,-460.0,0.00019452,2]
[370338966,1751967041359,-160.0,0.00019455,2]
[370338967,1751967041368,-230.51100374,0.00019455,2]
[370338968,1751967041377,-848.40570879,0.00019455,2]
[370338970,1751967041386,-837.89306043,0.00019455,2]
[370338971,1751967041395,-215.2437778,0.00019455,2]
[370338972,1751967041405,-150.12165877,0.00019475,2]
[370338973,1751967041414,-5778.91767151,0.000195,2]
[370338975,1751967041424,-428.6046964,0.000195,2]
[370338976,1751967041436,-380520.9578411,0.000196,2]
[370338978,1751967041453,-11690.33182475,0.000196,2]
[370338980,1751967041464,-6175.89236419,0.000196,2]
[370338982,1751967041523,-272.67577278,0.000196,2]
[370338983,1751967041537,-9510.31840986,0.000196,2]
[370338984,1751967041550,-10131.4624903,0.000196,2]
[370338998,1751967043045,-298.04696269,0.00019178,2]
[370339025,1751967046031,-165.7246327,0.00019178,2]
[370339026,1751967046042,-460.0,0.00019178,2]
[370339027,1751967046052,-606.0,0.00019178,2]
[370339028,1751967046062,-33.69740099,0.00019178,2]
[370339029,1751967046075,-256.6425437,0.00019178,2]
[370339033,1751967822591,-171.66922,0.00018196,2]
[370339034,1751967822615,-175.8117554,0.00018222,2]
[370339035,1751967822637,-490.58018454,0.00018812,2]
[370339036,1751967822658,-548.41265094,0.000189,2]
[370339037,1751967822684,-1200.0,0.00019177,2]
[370339038,1751967822708,-300.0,0.00019177,2]
[370339039,1751967822729,-460.0,0.00019178,2]
[370339040,1751967822753,-460.0,0.00019178,2]
[370339041,1751967822776,-460.0,0.00019178,2]
[370339042,1751967822798,-200.0,0.00019178,2]
[370339043,1751967822821,-460.0,0.00019178,2]
[370339044,1751967822847,-460.0,0.00019178,2]
[370339045,1751967822869,-460.0,0.00019178,2]
[370339046,1751967822891,-460.0,0.00019178,2]
[370339047,1751967822915,-460.0,0.00019178,2]
[370339048,1751967822937,-460.0,0.00019178,2]
[370339049,1751967822958,-460.0,0.00019178,2]
[370339050,1751967822980,-460.0,0.00019178,2]
[370339051,1751967823002,-460.0,0.00019178,2]
[370339052,1751967823024,-460.0,0.00019178,2]
[370339053,1751967823047,-460.0,0.00019178,2]
[370339054,1751967823069,-460.0,0.00019178,2]
[370339055,1751967823092,-13.52618912,0.00019178,2]
[370339127,1751968232476,-365.60843396,0.000189,2]
[370339128,1751968232486,-615.95440516,0.00018978,2]
[370339129,1751968232498,-1618.09255753,0.00018978,2]
[370339130,1751968232508,-150.12165877,0.00019078,2]
[370339131,1751968232518,-302.66710251,0.00019082,2]
[370339132,1751968232527,-300.0,0.00019177,2]
[370339133,1751968232536,-1200.0,0.00019177,2]
[370339134,1751968232546,-446.47381088,0.00019178,2]
[370339135,1751968232555,-460.0,0.00019178,2]
[370339136,1751968232564,-460.0,0.00019178,2]
[370339137,1751968232573,-195.71510932,0.00019178,2]
[370339138,1751968232582,-460.0,0.00019178,2]
[370339139,1751968232592,-460.0,0.00019178,2]
[370339140,1751968232602,-460.0,0.00019178,2]
[370339142,1751968232612,-460.0,0.00019178,2]
[370339144,1751968232621,-460.0,0.00019178,2]
[370339145,1751968232630,-460.0,0.00019178,2]
[370339147,1751968232640,-127.97668222,0.00019178,2]
[370339320,1751968240345,-452.02331778,0.00019178,2]
[370339321,1751968240355,-460.0,0.00019178,2]
[370339322,1751968240367,-439.51006064,0.00019178,2]
[370339323,1751968240376,-460.0,0.00019178,2]
[370339324,1751968240386,-460.0,0.00019178,2]
[370339325,1751968240395,-460.0,0.00019178,2]
[370339326,1751968240405,-460.0,0.00019178,2]
[370339327,1751968240414,-460.0,0.00019178,2]
[370339328,1751968240424,-295.97494485,0.00019178,2]
[370339329,1751968240434,-230.98681963,0.00019178,2]
[370339330,1751968240443,-233.29,0.00019178,2]
[370339331,1751968240452,-462.7363197,0.00019178,2]
[370339332,1751968240461,-460.0,0.00019178,2]
[370339333,1751968240470,-460.0,0.00019178,2]
[370339334,1751968240480,-460.0,0.00019178,2]
[370339335,1751968240490,-460.0,0.00019178,2]
[370339336,1751968240499,-460.0,0.00019178,2]
[370339337,1751968240508,-101.0668082,0.00019178,2]
[370339338,1751968240525,-358.9331918,0.00019178,2]
[370339339,1751968240542,-460.0,0.00019178,2]
[370339340,1751968240555,-586.76056324,0.00019178,2]
[370339341,1751968240566,-461.40990005,0.00019178,2]
[370339343,1751968240576,-460.0,0.00019178,2]
[370339345,1751968240585,-460.0,0.00019178,2]
[370339347,1751968240594,-460.0,0.00019178,2]
[370339349,1751968240604,-460.0,0.00019178,2]
[370339351,1751968240615,-460.0,0.00019178,2]
[370339353,1751968240624,-460.0,0.00019178,2]
[370339355,1751968240637,-460.0,0.00019178,2]
[370339357,1751968240647,-169.66005531,0.00019178,2]
[370339359,1751968240656,-65.0252689,0.00019178,2]
[370339593,1751968243187,-293.00176164,0.00019178,2]
[370339595,1751968243200,-152.09560981,0.00019178,2]
[370339597,1751968243210,-460.0,0.00019178,2]
[370339599,1751968243219,-460.0,0.00019178,2]
[370339601,1751968243228,-460.0,0.00019178,2]
[370339602,1751968243238,-460.0,0.00019178,2]
[370339604,1751968243247,-460.0,0.00019178,2]
[370339606,1751968243257,-460.0,0.00019178,2]
[370339608,1751968243266,-460.0,0.00019178,2]
[370339611,1751968243276,-500.0,0.00019178,2]
[370339613,1751968243286,-460.0,0.00019178,2]
[370339615,1751968243295,-460.0,0.00019178,2]
[370339617,1751968243304,-460.0,0.00019178,2]
[370339619,1751968243313,-460.0,0.00019178,2]
[370339621,1751968243322,-460.0,0.00019178,2]
[370339623,1751968243331,-460.0,0.00019178,2]
[370339625,1751968243340,-42.44596371,0.00019178,2]
[370339627,1751968243356,-417.55403629,0.00019178,2]
[370339630,1751968243366,-391.70101864,0.00019178,2]
[370339631,1751968243376,-460.0,0.00019178,2]
[370339632,1751968243386,-460.0,0.00019178,2]
[370339633,1751968243396,-460.0,0.00019178,2]
[370339634,1751968243405,-460.0,0.00019178,2]
[370339635,1751968243414,-460.0,0.00019178,2]
[370339636,1751968243424,-460.0,0.00019178,2]
[370339637,1751968243433,-460.0,0.00019178,2]
[370339638,1751968243442,-460.0,0.00019178,2]
[370339639,1751968243452,-542.10920804,0.00019178,2]
[370339640,1751968243461,-460.0,0.00019178,2]
[370339641,1751968243470,-354.72658956,0.00019178,2]
[370339642,1751968243479,-460.0,0.00019178,2]
[370339643,1751968243489,-460.0,0.00019178,2]
[370339644,1751968243498,-460.0,0.00019178,2]
[370339645,1751968243509,-464.11860093,0.00019178,2]
[370339646,1751968243519,-460.0,0.00019178,2]
[370339647,1751968243528,-460.0,0.00019178,2]
[370339648,1751968243537,-460.0,0.00019178,2]
[370339649,1751968243546,-460.0,0.00019178,2]
[370339650,1751968243555,-460.0,0.00019178,2]
[370339651,1751968243565,-460.0,0.00019178,2]
[370339652,1751968243575,-460.0,0.00019178,2]
[370339653,1751968243584,-460.0,0.00019178,2]
[370339654,1751968243594,-460.0,0.00019178,2]
[370339655,1751968243603,-417.33912543,0.00019178,2]
[370339656,1751968243613,-460.0,0.00019178,2]
[370339657,1751968243623,-460.0,0.00019178,2]
[370339658,1751968243633,-466.57200135,0.00019178,2]
[370339659,1751968243642,-460.0,0.00019178,2]
[370339660,1751968243652,-460.0,0.00019178,2]
[370339661,1751968243661,-460.0,0.00019178,2]
[370339662,1751968243672,-460.0,0.00019178,2]
[370339663,1751968243681,-460.0,0.00019178,2]
[370339664,1751968243691,-460.0,0.00019178,2]
[370339665,1751968243702,-249.79784152,0.00019178,2]
[370339666,1751968243711,-265.62722915,0.00019178,2]
[370339667,1751968243724,-194.37277085,0.00019178,2]
[370339668,1751968243733,-460.0,0.00019178,2]
[370339669,1751968243743,-460.0,0.00019178,2]
[370339670,1751968243753,-494.84,0.00019178,2]
[370339671,1751968243763,-460.0,0.00019178,2]
[370339672,1751968243774,-445.96881265,0.00019178,2]
[370339738,1751968246079,-1122.44791936,0.00018986,2]
[370339745,1751968246586,-3541.66305782,0.00018986,2]
[370339746,1751968246596,-14.03118735,0.00019178,2]
[370339747,1751968246606,-460.0,0.00019178,2]
[370339748,1751968246616,-460.0,0.00019178,2]
[370339749,1751968246625,-460.0,0.00019178,2]
[370339750,1751968246634,-442.79867531,0.00019178,2]
[370339751,1751968246649,-17.20132469,0.00019178,2]
[370339752,1751968246658,-493.27,0.00019178,2]
[370339753,1751968246668,-471.90794522,0.00019178,2]
[370339754,1751968246677,-460.0,0.00019178,2]
[370339755,1751968246686,-460.0,0.00019178,2]
[370339756,1751968246695,-1069.42,0.00019178,2]
[370339757,1751968246704,-460.94875484,0.00019178,2]
[370339758,1751968246714,-460.0,0.00019178,2]
[370339759,1751968246723,-454.02890206,0.00019178,2]
[370339760,1751968246735,-5.97109794,0.00019178,2]
[370339761,1751968246745,-460.0,0.00019178,2]
[370339762,1751968246755,-203.1572549,0.00019178,2]
[370339763,1751968246766,-256.8427451,0.00019178,2]
[370339764,1751968246776,-802.81,0.00019178,2]
[370339765,1751968246785,-157.20884045,0.00019178,2]
[370339766,1751968246795,-1771.36,0.00019178,2]
[370339767,1751968246804,-288.67,0.00019178,2]
[370339768,1751968246813,-460.0,0.00019178,2]
[370339769,1751968246823,-265.76,0.00019178,2]
[370339770,1751968246834,-749.84,0.00019178,2]
[370339771,1751968246843,-529.77,0.00019178,2]
[370339772,1751968246853,-460.0,0.00019178,2]
[370339773,1751968246862,-460.0,0.00019178,2]
[370339774,1751968246873,-1178.71,0.00019178,2]
[370339775,1751968246883,-233.17560748,0.00019178,2]
[370339781,1751968913361,732.77684039,0.00017555,2]
[370339782,1751968915235,2928.17625418,0.00017555,2]
[370339784,1751969193114,-153.27224158,0.00018303,2]
[370339785,1751969230288,326.2648172,0.00017555,2]
[370339786,1751969232569,1303.75420953,0.00017555,2]
[370339874,1751969432964,-1489.2192093,0.00018303,2]
[370339876,1751969432976,-453.22297792,0.00018303,2]
[370339878,1751969432985,-407.99490063,0.00018479,2]
[370339880,1751969432995,-1752.163239,0.000185,2]
[370339882,1751969433004,-308.53735882,0.000189,2]
[370339884,1751969433013,-1000.0,0.00019,2]
[370339886,1751969433023,-160.28232324,0.00019078,2]
[370339888,1751969433033,-401.47883375,0.00019078,2]
[370339890,1751969433042,-160.28232323,0.00019103,2]
[370339892,1751969433052,-160.28232323,0.00019127,2]
[370339894,1751969433061,-300.0,0.00019151,2]
[370339896,1751969433071,-300.0,0.00019151,2]
[370339898,1751969433081,-1200.0,0.00019151,2]
[370339900,1751969433091,-207.4,0.00019152,2]
[370339902,1751969433100,-160.28232323,0.00019152,2]
[370339904,1751969433110,-322.34,0.00019168,3]
[370339906,1751969433119,-244.837,0.00019177,2]
[370339908,1751969433128,-5778.91767151,0.00019178,2]
[370339911,1751969433138,-461.66475923,0.00019178,2]
[370339913,1751969433158,-315.88111285,0.00019178,2]
[370339915,1751969433168,-460.0,0.00019178,2]
[370339917,1751969433178,-524.14891893,0.00019178,2]
[370339919,1751969433189,-460.0,0.00019178,2]
[370339921,1751969433200,-460.0,0.00019178,2]
[370339923,1751969433210,-540.0,0.00019178,2]
[370339926,1751969433221,-460.0,0.00019178,2]
[370339928,1751969433230,-541.49174805,0.00019178,2]
[370339929,1751969433240,-187.24210784,0.00019178,2]
[370339931,1751969433250,-460.0,0.00019178,2]
[370339934,1751969433261,-460.0,0.00019178,2]
[370339936,1751969433271,-460.0,0.00019178,2]
[370339938,1751969433281,-460.0,0.00019178,2]
[370339940,1751969433291,-460.0,0.00019178,2]
[370339942,1751969433301,-179.14521138,0.00019178,2]
[370339944,1751969433312,-540.28728526,0.00019178,2]
[370339946,1751969433321,-460.0,0.00019178,2]
[370339948,1751969433331,-460.0,0.00019178,2]
[370339950,1751969433341,-460.0,0.00019178,2]
[370339952,1751969433351,-460.0,0.00019178,2]
[370339953,1751969433361,-460.0,0.00019178,2]
[370339955,1751969433372,-460.0,0.00019178,2]
[370339957,1751969433381,-460.0,0.00019178,2]
[370339959,1751969433391,-460.0,0.00019178,2]
[370339961,1751969433402,-151.62656841,0.00019178,2]
[370339963,1751969433412,-460.0,0.00019178,2]
[370339965,1751969433422,-460.0,0.00019178,2]
[370339967,1751969433432,-460.0,0.00019178,2]
[370339969,1751969433443,-460.0,0.00019178,2]
[370339971,1751969433453,-833.33,0.00019178,2]
[370339973,1751969433463,-460.0,0.00019178,2]
[370339975,1751969433473,-460.0,0.00019178,2]
[370339977,1751969433483,-462.09312856,0.00019178,2]
[370339979,1751969433493,-460.0,0.00019178,2]
[370339981,1751969433503,-460.0,0.00019178,2]
[370339984,1751969433513,-460.0,0.00019178,2]
[370339985,1751969433523,-460.0,0.00019178,2]
[370339987,1751969433532,-460.0,0.00019178,2]
[370339989,1751969433542,-460.0,0.00019178,2]
[370339991,1751969433552,-460.0,0.00019178,2]
[370339993,1751969433562,-460.0,0.00019178,2]
[370339995,1751969433572,-460.0,0.00019178,2]
[370339998,1751969433583,-460.0,0.00019178,2]
[370340000,1751969433592,-460.0,0.00019178,2]
[370340001,1751969433601,-460.0,0.00019178,2]
[370340004,1751969433611,-460.0,0.00019178,2]
[370340006,1751969433621,-460.0,0.00019178,2]
[370340008,1751969433631,-460.0,0.00019178,2]
[370340010,1751969433640,-460.0,0.00019178,2]
[370340012,1751969433650,-460.0,0.00019178,2]
[370340024,1751969433827,-460.0,0.00019178,2]
[370340026,1751969433838,-460.0,0.00019178,2]
[370340028,1751969433848,-369.62656306,0.00019178,2]
[370340030,1751969433858,-460.0,0.00019178,2]
[370340031,1751969433867,-460.0,0.00019178,2]
[370340032,1751969433878,-460.0,0.00019178,2]
[370340033,1751969433887,-460.0,0.00019178,2]
[370340034,1751969433897,-460.0,0.00019178,2]
[370340035,1751969433906,-460.0,0.00019178,2]
[370340036,1751969433916,-460.0,0.00019178,2]
[370340038,1751969433926,-460.0,0.00019178,2]
[370340039,1751969433935,-460.0,0.00019178,2]
[370340040,1751969433945,-460.0,0.00019178,2]
[370340041,1751969433956,-460.0,0.00019178,2]
[370340042,1751969433966,-460.0,0.00019178,2]
[370340043,1751969433976,-460.0,0.00019178,2]
[370340044,1751969433986,-463.84387994,0.00019178,2]
[370340045,1751969433995,-460.0,0.00019178,2]
[370340047,1751969434005,-460.0,0.00019178,2]
[370340049,1751969434015,-403.42571521,0.00019178,2]
[370340050,1751969434024,-460.0,0.00019178,2]
[370340051,1751969434033,-460.0,0.00019178,2]
[370340052,1751969434043,-460.0,0.00019178,2]
[370340053,1751969434053,-460.0,0.00019178,2]
[370340054,1751969434063,-460.0,0.00019178,2]
[370340055,1751969434073,-460.0,0.00019178,2]
[370340056,1751969434083,-460.0,0.00019178,2]
[370340057,1751969434092,-460.0,0.00019178,2]
[370340058,1751969434101,-460.0,0.00019178,2]
[370340059,1751969434112,-460.0,0.00019178,2]
[370340060,1751969434122,-500.0,0.00019178,2]
[370340061,1751969434131,-507.29270201,0.00019178,2]
[370340062,1751969434140,-460.0,0.00019178,2]
[370340063,1751969434150,-1.1832123,0.00019178,2]
[370340083,1751969438363,-458.8167877,0.00019178,2]
[370340084,1751969438374,-460.0,0.00019178,2]
[370340085,1751969438384,-465.57555808,0.00019178,2]
[370340086,1751969438398,-460.0,0.00019178,2]
[370340087,1751969438413,-460.0,0.00019178,2]
[370340088,1751969438427,-460.0,0.00019178,2]
[370340089,1751969438441,-461.59521569,0.00019178,2]
[370340090,1751969438453,-260.47405786,0.00019178,2]
[370340091,1751969438463,-460.0,0.00019178,2]
[370340092,1751969438476,-460.0,0.00019178,2]
[370340093,1751969438488,-460.0,0.00019178,2]
[370340094,1751969438501,-460.0,0.00019178,2]
[370340095,1751969438513,-460.0,0.00019178,2]
[370340096,1751969438525,-460.0,0.00019178,2]
[370340097,1751969438538,-460.0,0.00019178,2]
[370340098,1751969438550,-460.0,0.00019178,2]
[370340099,1751969438562,-460.0,0.00019178,2]
[370340100,1751969438575,-460.0,0.00019178,2]
[370340101,1751969438588,-460.0,0.00019178,2]
[370340102,1751969438600,-460.0,0.00019178,2]
[370340103,1751969438612,-460.0,0.00019178,2]
[370340104,1751969438625,-500.0,0.00019178,2]
[370340105,1751969438638,-496.83,0.00019178,2]
[370340106,1751969438650,-460.0,0.00019178,2]
[370340107,1751969438662,-187.6973566,0.00019178,2]
[370340108,1751969438675,-357.26408557,0.00019178,2]